bitfinex-derivatives/quotes_BTCF0:USTF0_20240815
["timestamp","ask_amount","ask_price","bid_price","bid_amount"]
[1723685251055,0.244904,58876.0,58870.0,0.14]
[1723685251256,0.084905,58875.0,58870.0,0.14]
[1723685251564,0.244905,58875.0,58870.0,0.14]
[1723685251861,0.3608,58874.0,58870.0,0.14]
[1723685252055,0.5208,58874.0,58870.0,0.14]
[1723685252363,0.290108,58873.0,58863.0,0.3608]
[1723685252553,0.460108,58873.0,58863.0,0.5308]
[1723685253162,0.3608,58865.0,58857.0,0.08493]
[1723685253366,0.1603,58864.0,58859.0,0.5108]
[1723685253555,0.3303,58864.0,58859.0,0.5108]
[1723685254851,0.2052,58862.0,58855.0,0.084933]
[1723685255052,0.440124,58862.0,58852.0,0.00015516]
[1723685255251,0.440124,58862.0,58852.0,0.15015516]
[1723685255463,0.440124,58862.0,58852.0,0.00015516]
[1723685255663,0.440124,58862.0,58852.0,0.08509316]
[1723685256257,0.3608,58853.0,58852.0,0.00015516]
[1723685256455,0.5008,58853.0,58852.0,0.00015516]
[1723685256950,0.585737,58853.0,58852.0,0.00015516]
[1723685257157,1.495497,58853.0,58852.0,0.00015516]
[1723685257355,1.300697,58853.0,58852.0,0.00015516]
[1723685257561,0.706,58853.0,58852.0,0.00015516]
[1723685257962,0.707,58853.0,58852.0,0.00015516]
[1723685258568,0.708,58853.0,58852.0,0.00015516]
[1723685260561,0.5028,58853.0,58852.0,0.08509316]
[1723685260964,0.5028,58853.0,58852.0,0.25509316]
[1723685261557,0.142,58853.0,58852.0,0.25509316]
[1723685261962,0.142,58853.0,58852.0,0.76485316]
[1723685262166,0.3608,58860.0,58859.0,0.084928]
[1723685262376,0.5208,58860.0,58859.0,0.254928]
[1723685263264,0.37159094,58866.0,58862.0,0.084924]
[1723685263461,0.01013191,58863.0,58862.0,0.254924]
[1723685263666,0.01013191,58863.0,58862.0,0.764604]
[1723685264079,0.01013191,58863.0,58862.0,0.254924]
[1723685265069,0.01113191,58863.0,58862.0,0.254924]
[1723685265676,0.01213191,58863.0,58862.0,0.254924]
[1723685267171,0.01213191,58863.0,58862.0,0.17]
[1723685267469,0.084928,58860.0,58846.0,0.3608]
[1723685267669,0.605728,58860.0,58852.0,0.16015516]
[1723685267865,0.5208,58860.0,58856.0,0.084931]
[1723685268665,0.5218,58860.0,58856.0,0.084931]
[1723685268866,0.5218,58860.0,58852.0,0.36095516]
[1723685269176,0.5218,58860.0,58859.0,0.084928]
[1723685269675,0.5228,58860.0,58859.0,0.084928]
[1723685270079,0.162,58860.0,58859.0,0.084928]
[1723685270763,0.162,58860.0,58859.0,0.234928]
[1723685271163,0.10252859,58860.0,58859.0,0.234928]
[1723685271370,0.10252859,58860.0,58859.0,0.744608]
[1723685272471,0.00013191,58863.0,58859.0,0.744608]
[1723685272472,0.00013191,58863.0,58862.0,0.084924]
[1723685272772,0.17013191,58863.0,58862.0,0.234924]
[1723685273577,0.17113191,58863.0,58862.0,0.234924]
[1723685274276,0.17213191,58863.0,58862.0,0.234924]
[1723685276578,0.17213191,58863.0,58862.0,0.15]
[1723685276880,0.37733191,58863.0,58852.0,0.084312]
[1723685277078,0.3608,58860.0,58858.0,0.084928]
[1723685277280,0.3608,58860.0,58859.0,0.084928]
[1723685277281,0.15,58860.0,58859.0,0.084928]
[1723685277473,0.15,58860.0,58859.0,0.254928]
[1723685278781,0.151,58860.0,58859.0,0.254928]
[1723685279370,0.151,58860.0,58859.0,0.255928]
[1723685279776,0.152,58860.0,58859.0,0.256928]
[1723685281284,0.152,58860.0,58859.0,0.34108484]
[1723685281682,0.152,58860.0,58859.0,0.47047974]
[1723685282473,0.152,58860.0,58859.0,0.34108484]
[1723685282672,0.152,58860.0,58859.0,0.256928]
[1723685283284,0.152,58860.0,58859.0,0.34108484]
[1723685283483,0.152,58860.0,58859.0,0.256928]
[1723685284979,0.152,58860.0,58859.0,0.38632087]
[1723685285180,0.152,58860.0,58859.0,0.47099631]
[1723685285894,0.152,58860.0,58859.0,0.38632087]
[1723685286286,0.152,58860.0,58859.0,0.47098562]
[1723685286589,0.152,58860.0,58859.0,0.38632087]
[1723685286786,0.152,58860.0,58859.0,0.4709893]
[1723685287175,0.152,58860.0,58859.0,0.47099169]
[1723685287785,0.152,58860.0,58859.0,0.34159643]
[1723685288092,0.152,58860.0,58859.0,0.38632392]
[1723685288985,0.152,58860.0,58859.0,0.47103993]
[1723685289182,0.152,58860.0,58859.0,0.38632392]
[1723685289389,0.152,58860.0,58859.0,0.4880686]
[1723685289584,0.152,58860.0,58859.0,0.38632392]
[1723685289791,0.152,58860.0,58859.0,0.256928]
[1723685289991,0.152,58860.0,58859.0,0.48802939]
[1723685290285,0.152,58860.0,58859.0,0.38631955]
[1723685290591,0.152,58860.0,58859.0,0.53572897]
[1723685291994,0.152,58860.0,58859.0,0.30139155]
[1723685292180,0.236927,58860.0,58859.0,0.13139155]
[1723685292380,0.084929,58858.0,58857.0,0.08487629]
[1723685292693,0.084933,58856.0,58854.0,0.08487629]
[1723685292891,0.0817,58855.0,58853.0,0.08487629]
[1723685293088,0.2317,58855.0,58853.0,0.25487629]
[1723685293591,0.3608,58854.0,58851.0,0.06787449]
[1723685293792,0.2052,58852.0,58851.0,1e-08]
[1723685293982,0.2052,58852.0,58846.0,0.08487629]
[1723685293983,0.3752,58852.0,58846.0,0.08487629]
[1723685294188,0.3608,58847.0,58846.0,0.15]
[1723685294395,0.5308,58847.0,58846.0,0.15]
[1723685294687,0.6948,58847.0,58846.0,0.15]
[1723685295087,0.69493858,58847.0,58846.0,0.15]
[1723685295291,0.69493858,58847.0,58840.0,0.16983129]
[1723685295487,0.2052,58845.0,58840.0,0.244955]
[1723685295687,0.3752,58845.0,58840.0,0.244955]
[1723685296292,0.17,58845.0,58840.0,0.16]
[1723685296485,0.17,58845.0,58844.0,0.08495]
[1723685296692,0.172,58845.0,58844.0,0.08495]
[1723685302599,0.172,58845.0,58844.0,0.24495]
[1723685303687,0.172,58845.0,58844.0,0.16]
[1723685304105,0.3772,58845.0,58844.0,0.16]
[1723685304492,0.462148,58845.0,58844.0,0.16]
[1723685305799,0.08495,58844.0,58839.0,0.08487629]
[1723685306001,0.23495,58844.0,58839.0,0.25487629]
[1723685306194,0.0757,58843.0,58839.0,0.25487629]
[1723685306396,0.2357,58843.0,58839.0,0.25487629]
[1723685306706,0.3608,58840.0,58839.0,0.25487629]
[1723685306895,0.810955,58840.0,58839.0,0.08487629]
[1723685307290,0.08496,58837.0,58829.0,0.11817758]
[1723685307501,0.2052,58834.0,58829.0,0.27817758]
[1723685307705,0.0815,58833.0,58829.0,0.27817758]
[1723685307895,0.2415,58833.0,58829.0,0.27817758]
[1723685308099,0.2415,58833.0,58830.0,0.08497]
[1723685308416,0.16,58833.0,58832.0,0.084967]
[1723685308599,0.16,58833.0,58832.0,0.244967]
[1723685309202,0.16,58833.0,58832.0,0.16]
[1723685310404,0.16,58833.0,58830.0,0.05074417]
[1723685310608,0.161,58833.0,58830.0,0.20074417]
[1723685310808,0.1705279,58833.0,58830.0,0.20074417]
[1723685311413,0.1695279,58833.0,58830.0,0.20074417]
[1723685311614,0.1705279,58833.0,58830.0,0.20074417]
[1723685312706,0.1695279,58833.0,58830.0,0.20074417]
[1723685312909,0.1705279,58833.0,58830.0,0.20074417]
[1723685313612,0.1705279,58833.0,58830.0,0.15]
[1723685313811,0.00017079,58832.0,58830.0,0.15]
[1723685314012,0.15017079,58832.0,58830.0,0.15]
[1723685315306,0.15117079,58832.0,58830.0,0.15]
[1723685316005,0.15217079,58832.0,58830.0,0.15]
[1723685318207,0.3608,58831.0,58830.0,0.15]
[1723685318406,0.5308,58831.0,58830.0,0.15]
[1723685319708,0.5318,58831.0,58830.0,0.15]
[1723685320208,0.5318,58831.0,58830.0,0.23497]
[1723685320602,0.5328,58831.0,58830.0,0.23497]
[1723685323613,0.5328,58831.0,58830.0,0.28571417]
[1723685324303,0.5328,58831.0,58830.0,0.23497]
[1723685324513,0.5328,58831.0,58830.0,0.15]
[1723685324715,0.6147,58831.0,58830.0,0.15]
[1723685324908,0.6147,58831.0,58826.0,0.05074417]
[1723685325108,0.445774,58827.0,58826.0,0.08785099]
[1723685325307,0.605774,58827.0,58826.0,0.07008609]
[1723685325908,0.605774,58827.0,58823.0,0.29074417]
[1723685325909,0.084978,58825.0,58822.0,0.05092355]
[1723685326108,0.2052,58823.0,58822.0,0.00017938]
[1723685326316,0.3652,58823.0,58822.0,0.00017938]
[1723685327113,0.3652,58823.0,58822.0,0.05092355]
[1723685327507,0.3662,58823.0,58822.0,0.00017938]
[1723685328220,0.3672,58823.0,58822.0,0.00017938]
[1723685330931,0.162,58823.0,58822.0,0.00017938]
[1723685331918,0.162,58823.0,58822.0,0.23516038]
[1723685334315,0.162,58823.0,58822.0,0.36464261]
[1723685334813,0.162,58823.0,58822.0,0.23516038]
[1723685335214,0.162,58823.0,58822.0,0.87464262]
[1723685336814,0.162,58823.0,58822.0,0.95962362]
[1723685337022,0.00017079,58832.0,58831.0,0.084968]
[1723685337229,0.16017079,58832.0,58831.0,0.234968]
[1723685338432,0.16871622,58832.0,58831.0,0.234968]
[1723685339117,0.16871622,58832.0,58831.0,0.235968]
[1723685339325,0.16971622,58832.0,58831.0,0.236968]
[1723685341023,0.16971622,58832.0,58831.0,0.152]
[1723685341530,0.16971622,58832.0,58831.0,0.002]
[1723685345133,0.25468322,58832.0,58831.0,0.002]
[1723685345528,0.30533627,58832.0,58831.0,0.002]
[1723685345724,0.25468322,58832.0,58831.0,0.05291676]
[1723685345922,0.25468322,58832.0,58831.0,0.05291557]
[1723685346131,0.25468322,58832.0,58831.0,0.002]
[1723685347423,0.25468322,58832.0,58831.0,0.05291762]
[1723685347622,0.25468322,58832.0,58831.0,0.04015291]
[1723685347833,0.23731565,58832.0,58829.0,0.05091788]
[1723685348032,0.084971,58829.0,58828.0,0.05091887]
[1723685348233,0.29559708,58829.0,58828.0,0.22091887]
[1723685348535,0.29559708,58829.0,58828.0,0.05091887]
[1723685349031,0.21062608,58829.0,58828.0,0.13589187]
[1723685349332,0.161,58829.0,58828.0,0.224973]
[1723685349822,0.161,58829.0,58828.0,0.19091912]
[1723685350027,0.21262608,58829.0,58828.0,0.19191912]
[1723685350330,0.162,58829.0,58828.0,0.19191912]
[1723685350536,0.162,58829.0,58828.0,0.05191912]
[1723685350727,0.162,58829.0,58828.0,0.001]
[1723685351330,0.162,58829.0,58828.0,0.085973]
[1723685352237,0.162,58829.0,58828.0,0.225973]
[1723685353224,0.162,58829.0,58828.0,0.31957883]
[1723685353830,0.162,58829.0,58828.0,0.31080914]
[1723685356435,0.162,58829.0,58828.0,0.44028058]
[1723685356635,0.06785429,58837.0,58828.0,1.25341072]
[1723685356636,0.00025486,58837.0,58828.0,1.25341072]
[1723685356840,0.11000001,58837.0,58836.0,0.084961]
[1723685357136,0.11000001,58837.0,58836.0,0.3544171]
[1723685357734,0.11011629,58837.0,58836.0,0.35440537]
[1723685359044,0.11011629,58837.0,58836.0,0.36326038]
[1723685359542,0.11211629,58837.0,58836.0,0.36326038]
[1723685360145,0.16,58843.0,58842.0,0.084952]
[1723685360440,0.14,58843.0,58842.0,0.3027449]
[1723685360745,0.14,58843.0,58842.0,0.234952]
[1723685361242,0.14,58843.0,58842.0,0.30272901]
[1723685361437,0.147,58843.0,58842.0,0.30272901]
[1723685361836,0.147,58843.0,58842.0,0.234952]
[1723685362237,0.147,58843.0,58842.0,0.3027146]
[1723685362434,0.156,58843.0,58842.0,0.3027146]
[1723685363241,0.156,58843.0,58842.0,0.30270278]
[1723685364842,0.156,58843.0,58842.0,0.234952]
[1723685374854,0.156,58843.0,58842.0,0.24349212]
[1723685375847,0.156,58843.0,58842.0,0.3112429]
[1723685376153,0.156,58843.0,58842.0,0.24349212]
[1723685377251,7.8e-07,58843.0,58842.0,1.23828412]
[1723685377450,7.8e-07,58843.0,58842.0,1.45244892]
[1723685377649,7.8e-07,58843.0,58842.0,1.36770779]
[1723685377849,7.8e-07,58843.0,58842.0,1.44990779]
[1723685378445,7.8e-07,58843.0,58842.0,1.81070779]
[1723685379146,0.09000078,58843.0,58842.0,1.81070779]
[1723685379343,0.09000078,58843.0,58842.0,0.81591579]
[1723685379546,0.09000078,58843.0,58842.0,0.89201083]
[1723685379941,0.09000078,58843.0,58842.0,1.31965083]
[1723685380253,0.09000078,58843.0,58842.0,0.72517567]
[1723685380452,0.09000078,58843.0,58842.0,0.80983286]
[1723685381152,0.09000078,58843.0,58842.0,0.72517567]
[1723685382055,7.8e-07,58843.0,58842.0,1.63501567]
[1723685382254,7.8e-07,58843.0,58842.0,1.69448167]
[1723685382645,0.10000078,58843.0,58842.0,1.69448167]
[1723685383047,0.10000078,58843.0,58842.0,1.60952967]
[1723685383543,0.10000078,58843.0,58842.0,1.66899567]
[1723685383958,0.10000078,58843.0,58842.0,1.60952967]
[1723685384451,0.10000078,58843.0,58842.0,1.66899567]
[1723685384757,0.10000078,58843.0,58842.0,1.60952967]
[1723685384962,0.10000078,58843.0,58842.0,1.66899567]
[1723685385461,0.10000078,58843.0,58842.0,1.60952967]
[1723685386060,0.10000078,58843.0,58842.0,1.20952967]
[1723685386761,0.10000078,58843.0,58842.0,1.26899567]
[1723685386952,0.10000078,58843.0,58842.0,1.20952967]
[1723685388357,0.10000078,58843.0,58842.0,0.69968967]
[1723685388557,0.10000078,58843.0,58842.0,1.26899567]
[1723685389456,0.09000078,58843.0,58842.0,1.66899567]
[1723685390355,0.09000078,58843.0,58842.0,1.81393419]
[1723685392659,0.09000078,58843.0,58842.0,1.81335444]
[1723685392858,0.03901606,58843.0,58842.0,1.81335444]
[1723685396763,0.03901606,58843.0,58842.0,1.75388844]
[1723685396971,0.03901606,58843.0,58842.0,1.81229799]
[1723685397266,0.03901606,58843.0,58842.0,1.75283199]
[1723685397466,0.03901606,58843.0,58842.0,1.81229799]
[1723685398054,0.03901606,58843.0,58842.0,1.41229799]
[1723685398267,0.03901606,58843.0,58842.0,1.81229799]
[1723685399381,0.03901606,58843.0,58842.0,1.41229799]
[1723685400285,0.03901606,58843.0,58842.0,1.56031116]
[1723685400482,0.03901606,58843.0,58842.0,1.41229799]
[1723685400783,0.09848106,58843.0,58842.0,0.15]
[1723685401176,0.09848106,58843.0,58842.0,0.209466]
[1723685401371,0.09848106,58843.0,58842.0,0.29431054]
[1723685401372,0.03901606,58843.0,58842.0,0.29431054]
[1723685401576,0.03901606,58843.0,58842.0,0.33890465]
[1723685401876,0.03901606,58843.0,58842.0,0.5229181]
[1723685402084,0.03901606,58843.0,58842.0,0.56504292]
[1723685402579,0.03901606,58843.0,58842.0,0.42110465]
[1723685402783,0.03901606,58843.0,58842.0,0.52292715]
[1723685403083,0.03901606,58843.0,58842.0,0.33890465]
[1723685403084,0.12121606,58843.0,58842.0,0.33890465]
[1723685403779,0.18068106,58843.0,58842.0,0.27943865]
[1723685403973,0.18068106,58843.0,58842.0,0.23485867]
[1723685404170,0.18068106,58843.0,58842.0,0.15]
[1723685404479,0.18068106,58843.0,58842.0,0.36429635]
[1723685404680,0.54148106,58843.0,58842.0,0.15]
[1723685404874,1.45132106,58843.0,58842.0,0.15]
[1723685405074,1.39185606,58843.0,58839.0,0.06789093]
[1723685405274,0.059469,58839.0,58838.0,0.06789897]
[1723685405479,0.059469,58839.0,58836.0,0.05088518]
[1723685405480,0.059471,58837.0,58836.0,0.05088518]
[1723685405784,0.059472,58836.0,58835.0,0.01320025]
[1723685405987,0.059472,58836.0,58830.0,0.06789897]
[1723685405988,0.059477,58831.0,58830.0,0.06789897]
[1723685406283,0.059478,58830.0,58828.0,0.06789897]
[1723685406487,0.0822,58829.0,58826.0,0.06789897]
[1723685406786,0.0822,58827.0,58826.0,0.06789897]
[1723685406982,0.2522,58827.0,58826.0,0.06789897]
[1723685407575,0.2522,58827.0,58824.0,0.06789897]
[1723685407786,0.2522,58827.0,58824.0,0.23789897]
[1723685407981,0.17,58827.0,58824.0,0.23789897]
[1723685408188,0.17870806,58827.0,58825.0,0.059483]
[1723685408376,0.0766,58826.0,58825.0,0.059483]
[1723685408582,0.2466,58826.0,58825.0,0.059483]
[1723685410077,0.2476,58826.0,58825.0,0.236483]
[1723685410682,0.171,58826.0,58825.0,0.236483]
[1723685410886,0.172,58826.0,58825.0,0.247483]
[1723685413088,0.172,58826.0,58825.0,0.077483]
[1723685413284,0.172,58826.0,58825.0,0.018]
[1723685413589,0.172,58826.0,58825.0,0.077483]
[1723685413985,0.172,58826.0,58825.0,0.247483]
[1723685416598,0.172,58826.0,58825.0,0.873466]
[1723685416787,0.172,58826.0,58825.0,0.813983]
[1723685417088,0.172,58826.0,58825.0,0.88188197]
[1723685417796,0.002,58826.0,58825.0,0.813983]
[1723685418385,0.00025486,58832.0,58831.0,0.118954]
[1723685418584,0.00025486,58832.0,58831.0,1.26410404]
[1723685418585,8.6e-07,58832.0,58831.0,1.26410404]
[1723685418793,0.1593,58844.0,58843.0,0.059465]
[1723685418988,0.388764,58844.0,58843.0,0.15]
[1723685419187,0.3293,58844.0,58843.0,0.209465]
[1723685420794,0.3393,58844.0,58843.0,0.210465]
[1723685421887,0.3463,58844.0,58843.0,0.211465]
[1723685427995,0.4285,58844.0,58843.0,0.211465]
[1723685429493,0.4285,58844.0,58843.0,0.152]
[1723685429808,1.33834,58844.0,58843.0,0.002]
[1723685430396,0.059469,58839.0,58838.0,0.00025486]
[1723685430586,0.5308,58839.0,58828.0,0.06757876]
[1723685430796,0.0822,58829.0,58828.0,0.15]
[1723685430988,0.16,58829.0,58828.0,0.15]
[1723685431191,0.16,58829.0,58828.0,0.20948]
[1723685431701,0.16,58829.0,58828.0,0.27720653]
[1723685432194,0.16,58829.0,58828.0,0.21748]
[1723685432403,0.16,58829.0,58828.0,0.28520894]
[1723685432701,0.16,58829.0,58828.0,0.27720894]
[1723685432901,0.161,58829.0,58828.0,0.28520894]
[1723685433098,0.161,58829.0,58828.0,0.29320894]
[1723685433306,1.23736,58829.0,58822.0,0.06793031]
[1723685433492,0.3608,58823.0,58822.0,0.21966538]
[1723685433695,0.14,58823.0,58822.0,0.21966538]
[1723685434197,0.14,58823.0,58822.0,0.30413884]
[1723685434604,0.14,58823.0,58822.0,0.31413884]
[1723685434799,0.14,58823.0,58822.0,0.35913533]
[1723685435103,0.14,58823.0,58822.0,0.44381475]
[1723685436294,0.141,58823.0,58822.0,0.43681306]
[1723685436493,0.141,58823.0,58822.0,0.3609211]
[1723685436699,0.142,58823.0,58822.0,0.3609211]
[1723685437011,0.002,58823.0,58822.0,0.3609211]
[1723685437300,0.36105486,58834.0,58833.0,0.059475]
[1723685437504,0.53002405,58834.0,58833.0,0.229475]
[1723685437906,0.16922405,58834.0,58833.0,0.229475]
[1723685438104,0.16025486,58834.0,58833.0,0.29721991]
[1723685438303,0.3608,58845.0,58844.0,0.059464]
[1723685438507,0.14,58845.0,58844.0,0.17]
[1723685439398,0.14,58845.0,58844.0,0.229464]
[1723685439603,0.3608,58850.0,58849.0,0.059459]
[1723685439909,0.46105486,58850.0,58849.0,0.229459]
[1723685441497,0.47505486,58850.0,58849.0,0.229459]
[1723685442595,0.48905486,58850.0,58849.0,0.229459]
[1723685443314,0.12825486,58850.0,58849.0,0.229459]
[1723685443607,0.3608,58862.0,58861.0,0.059447]
[1723685443811,0.36324001,58862.0,58861.0,0.415047]
[1723685444005,0.00908209,58864.0,58863.0,0.059445]
[1723685444312,0.3608,58876.0,58863.0,0.59846161]
[1723685444508,0.3708,58876.0,58875.0,0.059432]
[1723685444710,0.3608,58876.0,58875.0,0.059432]
[1723685445307,0.00240001,58888.0,58875.0,0.219432]
[1723685445613,0.1525,58891.0,58882.0,0.3608]
[1723685445796,0.2525,58891.0,58887.0,0.059419]
[1723685446002,0.46686593,58891.0,58882.0,0.420225]
[1723685446198,0.05942,58888.0,58882.0,0.420225]
[1723685446407,0.20942,58888.0,58882.0,0.420225]
[1723685446604,0.21242,58888.0,58883.0,0.059424]
[1723685446811,0.153,58888.0,58883.0,0.059424]
[1723685447009,0.153,58888.0,58882.0,0.3608]
[1723685447207,0.003,58888.0,58887.0,0.05942]
[1723685447508,0.103,58888.0,58887.0,0.05942]
[1723685447707,0.1,58888.0,58887.0,0.05942]
[1723685448112,0.101,58888.0,58887.0,0.05942]
[1723685448810,0.113,58888.0,58887.0,0.06042]
[1723685449510,0.122,58888.0,58887.0,0.06042]
[1723685450014,0.122,58888.0,58887.0,0.06142]
[1723685450212,0.022,58888.0,58887.0,0.20142]
[1723685450508,0.122,58888.0,58887.0,0.56222]
[1723685450904,0.059423,58884.0,58879.0,0.00025486]
[1723685451106,0.3608,58881.0,58879.0,0.00025486]
[1723685451301,0.570226,58881.0,58879.0,0.00025486]
[1723685451705,0.209426,58881.0,58879.0,0.00025486]
[1723685451910,0.15,58881.0,58879.0,0.00025486]
[1723685452215,0.15,58881.0,58879.0,0.00125486]
[1723685452216,0.5108,58881.0,58879.0,0.00125486]
[1723685452611,1.079747,58881.0,58879.0,0.00225486]
[1723685453007,1.085747,58881.0,58879.0,0.00125486]
[1723685453208,1.093747,58881.0,58879.0,0.00225486]
[1723685455007,1.10268581,58881.0,58879.0,0.00225486]
[1723685455611,0.59316581,58881.0,58879.0,0.00225486]
[1723685456008,0.5248,58881.0,58880.0,0.059427]
[1723685456208,0.5248,58881.0,58879.0,0.00225486]
[1723685457620,0.5188,58881.0,58879.0,0.00125486]
[1723685457815,0.5258,58881.0,58880.0,0.001]
[1723685458522,1.03432,58881.0,58879.0,0.00225486]
[1723685458820,0.5248,58881.0,58879.0,0.00225486]
[1723685459310,0.5258,58881.0,58880.0,0.001]
[1723685459510,0.585226,58881.0,58880.0,0.001]
[1723685459705,1.095746,58881.0,58880.0,0.002]
[1723685460409,1.094746,58881.0,58880.0,0.001]
[1723685460613,0.585226,58881.0,58880.0,0.001]
[1723685460805,0.578226,58881.0,58879.0,0.00125486]
[1723685461008,0.156,58881.0,58880.0,0.001]
[1723685461216,0.156,58881.0,58880.0,0.060427]
[1723685461217,0.165,58881.0,58880.0,0.060427]
[1723685461415,0.5258,58881.0,58880.0,0.060427]
[1723685462117,0.165,58881.0,58880.0,0.060427]
[1723685462311,0.166,58881.0,58880.0,0.061427]
[1723685462711,0.5268,58881.0,58880.0,0.061427]
[1723685462912,0.5268,58881.0,58880.0,0.002]
[1723685463807,0.5268,58881.0,58880.0,0.061427]
[1723685464120,0.166,58881.0,58880.0,0.231427]
[1723685464615,0.166,58881.0,58880.0,0.390827]
[1723685464818,0.166,58881.0,58880.0,0.231427]
[1723685466423,0.016,58881.0,58880.0,1.200374]
[1723685466613,0.4378,58899.0,58894.0,0.059413]
[1723685466908,0.4378,58899.0,58894.0,0.229413]
[1723685466909,0.16025486,58895.0,58894.0,0.229413]
[1723685467108,0.16907119,58895.0,58894.0,0.229413]
[1723685467314,0.16907119,58895.0,58894.0,0.059413]
[1723685467719,0.18307119,58895.0,58894.0,0.060413]
[1723685468021,0.19307119,58895.0,58894.0,0.061413]
[1723685471530,0.55387119,58895.0,58894.0,0.061413]
[1723685471719,0.19307119,58895.0,58894.0,0.061413]
[1723685474222,0.19307119,58895.0,58894.0,0.221413]
[1723685475329,0.19307119,58895.0,58894.0,0.28907461]
[1723685475524,0.19307119,58895.0,58894.0,0.221413]
[1723685476327,0.19307119,58895.0,58894.0,0.162]
[1723685476623,1.52268419,58895.0,58886.0,0.06766161]
[1723685476822,1.52268419,58895.0,58889.0,0.059418]
[1723685476823,0.61328419,58895.0,58889.0,0.059418]
[1723685477726,0.59928419,58895.0,58889.0,0.059418]
[1723685477932,0.0743,58894.0,58889.0,0.060418]
[1723685478229,0.283713,58894.0,58889.0,0.060418]
[1723685479631,0.283713,58894.0,58889.0,0.061418]
[1723685480025,0.283713,58894.0,58889.0,0.060418]
[1723685480221,0.287713,58894.0,58889.0,0.061418]
[1723685480743,0.2283,58894.0,58889.0,0.061418]
[1723685481034,0.3608,58890.0,58889.0,0.061418]
[1723685481226,0.5108,58890.0,58889.0,0.061418]
[1723685482130,0.71359403,58890.0,58889.0,0.002]
[1723685482335,0.059418,58889.0,58879.0,0.00025486]
[1723685482633,0.059427,58880.0,58879.0,1e-08]
[1723685482835,0.4110749,58880.0,58879.0,1e-08]
[1723685483129,0.5050479,58880.0,58879.0,1e-08]
[1723685483330,0.27681825,58880.0,58879.0,1e-08]
[1723685483530,0.4115715,58880.0,58879.0,1e-08]
[1723685483737,0.27681825,58880.0,58879.0,1e-08]
[1723685484030,0.27981825,58880.0,58879.0,0.00100001]
[1723685484830,0.41459714,58880.0,58879.0,0.00100001]
[1723685485025,0.47902293,58880.0,58879.0,0.00100001]
[1723685485220,0.34424525,58880.0,58879.0,0.00100001]
[1723685485433,0.35917398,58880.0,58879.0,0.06042801]
[1723685485633,0.51080913,58880.0,58879.0,0.06042801]
[1723685486131,0.28481825,58880.0,58879.0,0.06042801]
[1723685486330,0.28481825,58880.0,58879.0,0.23042801]
[1723685486936,0.28161346,58880.0,58879.0,0.23042801]
[1723685488437,0.35615633,58880.0,58879.0,0.23042801]
[1723685488642,0.28161346,58880.0,58879.0,0.23042801]
[1723685488826,0.35619361,58880.0,58879.0,0.23042801]
[1723685489221,0.41562061,58880.0,58879.0,0.00100001]
[1723685489823,0.35619361,58880.0,58879.0,0.00100001]
[1723685490234,0.158,58880.0,58879.0,0.00100001]
[1723685490532,0.158,58880.0,58879.0,0.22042801]
[1723685490939,0.158,58880.0,58879.0,0.29482801]
[1723685491339,0.158,58880.0,58879.0,0.37302801]
[1723685491933,0.158,58880.0,58879.0,0.45761453]
[1723685492437,0.158,58880.0,58879.0,0.58696107]
[1723685494832,0.158,58880.0,58879.0,0.22042801]
[1723685495134,0.158,58880.0,58879.0,0.20042801]
[1723685495735,0.217427,58880.0,58879.0,0.14100001]
[1723685496039,0.158,58880.0,58879.0,0.14100001]
[1723685496244,0.158,58880.0,58879.0,0.20042801]
[1723685496740,0.16682299,58880.0,58879.0,0.20042801]
[1723685497241,0.19434431,58880.0,58879.0,0.20042801]
[1723685500541,0.16682299,58880.0,58879.0,0.20042801]
[1723685500745,0.19434337,58880.0,58879.0,0.20042801]
[1723685500942,0.16682299,58880.0,58879.0,0.20042801]
[1723685501142,0.19434341,58880.0,58879.0,0.20042801]
[1723685501529,0.19434322,58880.0,58879.0,0.20042801]
[1723685502235,0.19434313,58880.0,58879.0,0.20042801]
[1723685502637,0.16682299,58880.0,58879.0,0.20042801]
[1723685502841,0.19434299,58880.0,58879.0,0.20042801]
[1723685503044,0.25111493,58880.0,58879.0,0.20042801]
[1723685503238,0.19434345,58880.0,58879.0,0.20042801]
[1723685505147,0.16682299,58880.0,58879.0,0.20042801]
[1723685507236,0.22624999,58880.0,58879.0,0.14100001]
[1723685508040,0.16682299,58880.0,58879.0,0.14100001]
[1723685508442,0.16682299,58880.0,58879.0,0.20042801]
[1723685509842,0.16682299,58880.0,58879.0,0.28501453]
[1723685510242,0.16682299,58880.0,58879.0,0.41436429]
[1723685510544,0.16682299,58880.0,58879.0,0.14100001]
[1723685510746,0.21741678,58880.0,58879.0,0.14100001]
[1723685511050,0.27684378,58880.0,58879.0,0.14100001]
[1723685511245,0.22624999,58880.0,58879.0,0.14100001]
[1723685511849,0.27690964,58880.0,58879.0,0.14100001]
[1723685512034,1.18642964,58880.0,58879.0,0.00100001]
[1723685512238,1.21146999,58880.0,58872.0,0.08458652]
[1723685512452,0.2056,58873.0,58871.0,0.08458652]
[1723685512748,0.137036,58872.0,58870.0,0.08458652]
[1723685512949,0.307036,58872.0,58869.0,0.08458652]
[1723685513343,0.307036,58872.0,58868.0,0.44538652]
[1723685513747,0.307036,58872.0,58871.0,0.002]
[1723685514245,0.307036,58872.0,58869.0,0.004]
[1723685514645,0.307036,58872.0,58871.0,0.06784043]
[1723685515340,0.307036,58872.0,58870.0,0.06784043]
[1723685515940,0.2476,58872.0,58870.0,0.0565289]
[1723685516143,0.5096,58871.0,58865.0,0.06828447]
[1723685516443,0.5664,58866.0,58859.0,0.06782789]
[1723685516650,0.05057439,58864.0,58858.0,0.06782789]
[1723685516949,0.20057439,58864.0,58858.0,0.06782789]
[1723685517340,0.3608,58860.0,58856.0,0.06782789]
[1723685517541,0.5308,58860.0,58856.0,0.06782789]
[1723685518145,0.590248,58860.0,58856.0,0.06782789]
[1723685518344,0.590248,58860.0,58850.0,0.3608]